Cogmind - Beta 16 @@@ ROGUE MODE // 2025.11.28 @ 15:05:51 Player: Miles Result: Self-destructed Performance ------------- Evolutions (1) 500 Regions Visited (2) 400 Robots Destroyed (11) 55 Value Destroyed (139) 139 Prototype IDs (1) 20 Alien Tech Used (0) 0 Bonus (0) 0 TOTAL SCORE: 1114 Bonus ------- None Cogmind --------- Core Integrity 368/400 Matter 209/300 Energy 265/265 System Corruption 0% Temperature Cool (0) Movement Flying (117) Ox1 Location -9/Materials Parts ------- > --- POWER (1) -------- Improved Ion Engine > --- PROPULSION (3) --- Flight Unit Flight Unit > --- UTILITY (3) ------ Improved Terrain Scanner ECM Suite > --- WEAPON (2) ------- (None) > --- INVENTORY (5) ---- Ion Engine Heavy Ion Engine EM Pulse Gun Grenade Launcher Plasma Cutter Peak State ------------ > --- POWER ------------ Improved Ion Engine > --- PROPULSION ------- Flight Unit Flight Unit Flight Unit > --- UTILITY ---------- Improved Terrain Scanner ECM Suite > --- WEAPON ----------- Light Assault Rifle Plasma Cutter > --- INVENTORY -------- Ion Engine Heavy Ion Engine EM Pulse Gun Grenade Launcher [Rating: 12] Favorites ----------- Power Improved Ion Engine Engine Improved Ion Engine Propulsion Flight Unit Wheel Wheel Flight Unit Flight Unit Utility Improved Terrain Scanner Device Improved Terrain Scanner Storage Small Storage Unit Weapon Light Assault Rifle Energy Gun EM Pulse Gun Ballistic Gun Light Assault Rifle Launcher Grenade Launcher Special Weapon Plasma Cutter Build | -11 -10 -9 ------- Run | Yrd Mat Mat Slots Evolved 2 | . . 2 Power . | . . . Propulsion 1 | . . 1 Utility 1 | . . 1 Weapon . | . . . Parts Attached 20 | 9 5 6 Power 4 | 1 1 2 Engine 4 | 1 1 2 Core . | . . . Reactor . | . . . Propulsion 7 | 3 3 1 Treads . | . . . Leg . | . . . Wheel 3 | 3 . . Hover . | . . . Flight 4 | . 3 1 Utility 4 | 3 1 . Device 3 | 2 1 . Storage 1 | 1 . . Processor . | . . . Hackware . | . . . Protection . | . . . Artifact . | . . . Weapon 5 | 2 . 3 Energy Gun 1 | . . 1 Energy Cannon . | . . . Ballistic Gun 2 | 2 . . Ballistic Cannon . | . . . Launcher 1 | . . 1 Special Weapon 1 | . . 1 Impact Weapon . | . . . Slashing Weapon . | . . . Piercing Weapon . | . . . Special Melee Weapon . | . . . Unidentified Prototypes 1 | . . 1 Parts Lost 4 | . 1 3 Power 1 | . 1 . Propulsion 2 | . . 2 Utility . | . . . Weapon 1 | . . 1 Highest Loss Streak 1 | . 1 1 To Critical Strikes . | . . . Average Backups 4 | 4 6 3 Power 1 | 1 . 1 Propulsion . | 1 2 . Utility . | . 1 . Weapon 1 | . 1 2 Tool/Special . | . . . Unused Backups 4 | 1 2 1 Power 1 | 1 . . Propulsion 2 | . 2 . Utility . | . . . Weapon 1 | . . 1 Tool/Special . | . . . Average Slot Usage (%) 80 | . 86 76 Engine 11 | . 13 11 Wheel 1 | . 5 . Flight 28 | . 22 31 Device 19 | . 14 21 Storage 2 | . 7 . Ballistic Gun 13 | . 23 8 Special Weapon 2 | . . 3 Peak Build Rating 12 | 11 10 12 Average Rating 8 | 4 7 10 On Entrance 4 | . 9 5 Avg Prop Armor Cover (%) . | . . . Naked Turns . | . . . Heaviest Build 13 | 13 13 13 Greatest Support 20 | 20 20 12 Greatest Overweight (x) 3 | 2 3 1 Average Overweight (x) . | . . . Largest Inventory Capacity 8 | 8 8 5 Average Capacity 5 | 5 6 5 Most Carried 8 | 7 8 5 Average Carried 4 | 4 6 3 Final Capacity 8 | 8 5 5 Final Carried 6 | 6 4 5 Class Distribution -------------------- 50% | Mutant 49% | Scavenger-Mutant Dominant Class ---------------- Scavenger-Mutant | -10/Materials Mutant | -9/Materials Resources | -11 -10 -9 ----------- Run | Yrd Mat Mat Matter Collected 397 | 312 85 . Remotely . | . . . Salvage Created 271 | 139 132 . Parts 24 | 14 10 . Haulers Intercepted . | . . . Recyclers Shooed . | . . . Parts Field Recycled . | . . . Retrieved Matter . | . . . Parts Self-Destructed . | . . . Prevented . | . . . Parts Restored . | . . . Kills | -11 -10 -9 ------- Run | Yrd Mat Mat Combat Hostiles Destroyed 5 | . 5 . Guns 5 | . 5 . Classes Destroyed 4 | 2 2 . Tunneler 5 | 5 . . Recycler 1 | 1 . . Swarmer 3 | . 3 . Grunt 2 | . 2 . Best Kill Streak 4 | 4 1 . Combat Bots Only 1 | . 1 . Max Kills in Single Turn 1 | 1 1 . Gunslinging . | . . . Exploded . | . . . Melee . | . . . Uniques/NPCs Destroyed . | . . . Combat | -11 -10 -9 -------- Run | Yrd Mat Mat Hostile Shots Fired 54 | . 31 23 Missed 20 | . 8 12 Hits 34 | . 23 11 Projectile 34 | . 23 11 Critical Strikes 1 | . . 1 Damage Taken 443 | . 232 211 Core 107 | . 75 32 Absorbed by Shields . | . . . Core Remaining (%) 85 | 100 70 . Volleys Fired 55 | 17 25 13 Largest 2 | 2 2 1 Hottest 40 | 40 40 40 Shots Fired 81 | 34 34 13 Gun 69 | 34 34 1 Cannon . | . . . Launcher . | . . . Special 12 | . . 12 Kinetic 68 | 34 34 . Thermal 12 | . . 12 Explosive . | . . . Electromagnetic 1 | . . 1 Robot Hit Streak 13 | 13 7 4 Robot Miss Streak 6 | 2 6 . Penetration Max . | . . . Secondary Targets . | . . . Shots Hit Robots 47 | 26 20 1 Core Hits 19 | 11 8 . Critical Kills . | . . . Critical Parts Destroyed 2 | 1 1 . Critical Strikes 2 | 1 1 . Destroy 2 | 1 1 . Melee Attacks . | . . . Impact . | . . . Slashing . | . . . Piercing . | . . . Sneak Attacks . | . . . Combat Hostiles . | . . . Follow-up Attacks . | . . . Damage Inflicted 377 | 204 163 10 Guns 367 | 204 163 . Cannons . | . . . Explosions . | . . . Melee . | . . . Ramming . | . . . Kinetic 367 | 204 163 . Thermal 10 | . . 10 Explosive . | . . . Electromagnetic . | . . . Impact . | . . . Slashing . | . . . Piercing . | . . . Highest Corruption . | . . . Average Corruption . | . . . Corruption Purged . | . . . Corruption Blocked . | . . . Overload Shots . | . . . Overflow Damage . | . . . Projectiles . | . . . Explosions . | . . . Melee . | . . . Knockbacks . | . . . Impact . | . . . Kinetic . | . . . Secondary . | . . . Self-Inflicted Damage . | . . . Shots . | . . . Rammed . | . . . Targets Rammed . | . . . Kicked . | . . . Crushed . | . . . Highest Temperature 17 | . 10 17 Average Temperature 4 | . 4 6 Received Heat Transfer 156 | . 84 72 Siege Activations . | . . . Martial Activations . | . . . Shielding Activations . | . . . Robots Disrupted . | . . . Combat Hostiles . | . . . Robots Corrupted . | . . . Combat Hostiles . | . . . Parts Fried . | . . . Impact Corruptions . | . . . Robots Melted . | . . . Combat Hostiles . | . . . Parts Melted . | . . . Heat Transferred 37 | . . 37 Parts Sabotaged . | . . . Parts Stolen . | . . . Parts Stripped . | . . . Power Chain Reactions . | . . . Alert | -11 -10 -9 ------- Run | Yrd Mat Mat Maximum Alert Level . | . . . Low Security (%) 100 | 100 100 100 Level 1 . | . . . Level 2 . | . . . Level 3 . | . . . Level 4 . | . . . Level 5 . | . . . High Security . | . . . Max Security . | . . . Peak Influence 85 | 10 85 27 Initial 27 | . . 27 Average 14 | 2 46 2 Influence Increases 195 | 30 165 . Destroy 0b10 Robot/C 100 | . 100 . Destroy 0b10 Robot/NC 30 | 30 . . Destroy Leader 20 | . 20 . Partial Spotted 15 | . 15 . Lose Combat Pursuer 30 | . 30 . Influence Decreases 195 | 30 100 65 Entered New Map 38 | . . 38 Time Decay 147 | 30 90 27 Lost Part 10 | . 10 . Squads Dispatched 1 | . 1 . Investigation 1 | . 1 . Extermination . | . . . Reinforcement . | . . . Assault . | . . . Garrison . | . . . Intercept . | . . . Searches Triggered . | . . . Construction Impeded . | . . . Haulers Reinforced . | . . . Active Scanning Responses . | . . . Cargo Convoy Interrupts . | . . . Stealth | -11 -10 -9 --------- Run | Yrd Mat Mat Distress Signals . | . . . Communications Jammed . | . . . Distress Signals . | . . . Times Spotted 21 | . 7 14 Peak Tracking Total 4 | . 3 4 Tactical Retreats 5 | . 1 4 ECM-based Alert Blocks 9 | . . 9 Traps | -11 -10 -9 ------- Run | Yrd Mat Mat Traps Triggered 2 | . 1 1 Indirectly . | . . . Trap Hack Attempts . | . . . Triggered . | . . . Disarmed . | . . . Reprogrammed . | . . . Reused . | . . . Traps Extracted . | . . . Installed . | . . . Triggered . | . . . Machines | -11 -10 -9 ---------- Run | Yrd Mat Mat Machines Disabled . | . . . Max in Single Turn . | . . . Machines Repaired . | . . . Machines Dismantled . | . . . Machines Sabotaged . | . . . Overloaded Fab Kills . | . . . Hacking | -11 -10 -9 --------- Run | Yrd Mat Mat Machines Accessed . | . . . Terminals . | . . . Fabricators . | . . . Repair Stations . | . . . Recycling Units . | . . . Scanalyzers . | . . . Garrison Access . | . . . Total Hacks . | . . . Successful . | . . . Failed . | . . . Catastrophic . | . . . Database Lockouts . | . . . Manual . | . . . Terminals . | . . . Fabricators . | . . . Repair Stations . | . . . Recycling Units . | . . . Scanalyzers . | . . . Garrison Access . | . . . Terminal Hacks . | . . . Fabricator Hacks . | . . . Repair Station Hacks . | . . . Recycling Unit Hacks . | . . . Scanalyzer . | . . . Garrison Access Hacks . | . . . Unauthorized Hacks . | . . . Terminals . | . . . Fabricators . | . . . Repair Stations . | . . . Recycling Units . | . . . Scanalyzers . | . . . Garrison Access . | . . . Data Cores Recovered . | . . . Used . | . . . Hacking Detections . | . . . Full Trace Events . | . . . Feedback Events . | . . . Feedback Blocked . | . . . Robot Schematics Acquired . | . . . Robots Built . | . . . Authchips . | . . . Time . | . . . Total Robot Build Rating . | . . . Part Schematics Acquired . | . . . Parts Built . | . . . Authchips . | . . . Time . | . . . Total Part Build Rating . | . . . Part Studies Acquired . | . . . Parts Repaired . | . . . Time . | . . . Parts Recycled . | . . . Recycled Matter . | . . . Retrieved Matter . | . . . Retrieved Components . | . . . Parts Scanalyzed . | . . . Part Schematics Acquired . | . . . Parts Damaged . | . . . Bothacking | -11 -10 -9 ------------ Run | Yrd Mat Mat Used RIF Installer . | . . . Robots Hacked . | . . . Non-combat . | . . . Combat . | . . . Robot Hacks Applied . | . . . Relay Couplers Released . | . . . Fabnet Peak Effective % . | . . . Robots Rewired . | . . . Allies Hacked . | . . . Hacks Repelled . | . . . Allies | -11 -10 -9 -------- Run | Yrd Mat Mat Total Allies . | . . . Largest Group . | . . . Highest-Rated Group . | . . . Highest-Rated Ally . | . . . Total Orders . | . . . Ally Attacks . | . . . Total Damage . | . . . Kills . | . . . Allies Corrupted . | . . . Allies Melted . | . . . Intel | -11 -10 -9 ------- Run | Yrd Mat Mat Active Infowar (turns) 622 | 34 201 387 Terrain 547 | 34 127 386 ECM 343 | . 75 268 Robot Analysis Total . | . . . Derelict Logs Recovered . | . . . Drone Launches . | . . . Drone Recoveries . | . . . Exploration | -11 -10 -9 ------------- Run | Yrd Mat Mat Turns Passed 738 | 150 201 387 Spaces Moved 1168 | 99 204 865 Core 49 | 49 . . Treads . | . . . Legs . | . . . Wheels 85 | 50 35 . Hover . | . . . Flight 1034 | . 169 865 Fastest Speed 34 | 50 37 34 Average Speed 46 | 84 61 38 Slowest Speed 280 | 150 280 117 Overloaded Moves . | . . . Propulsion Burnouts . | . . . Robots Hopped 1 | . . 1 Potential Cave-ins . | . . . Cave-ins Triggered . | . . . Exploration Rate (%) 27 | 6 38 38 Regions Visited 2 Branch Regions . Pre-discovered Areas . | . . . Known Exits Taken . | . . . Unknown Exits Taken 2 | 1 1 . Scrap Searched . | . . . Spaces Dug . | . . . Terrain Destroyed . | . . . Melee . | . . . Projectile . | . . . AOE . | . . . Terrain Rammed . | . . . Walls Destroyed . | . . . Machines Disabled . | . . . Actions | -11 -10 -9 --------- Run | Yrd Mat Mat Total 1286 | 136 255 895 Wait 7 | . 7 . Move 1164 | 98 203 863 Hop 1 | . . 1 Pick Up 18 | 10 3 5 Fast Attach 8 | 4 3 1 Attach 11 | 3 2 6 Detach 3 | . 1 2 Swap 5 | 2 1 2 Drop 14 | 2 10 2 Fire 55 | 17 25 13 Melee . | . . . Ram . | . . . Kick . | . . . Crush . | . . . Escape Stasis . | . . . Rewire . | . . . Trap . | . . . Miscellaneous . | . . . Route ------- -11/Scrapyard -10/Materials (discovered 2 exits: [*Mat] / [*Min]) -9/Materials (discovered 1 exit: [*Mat]) History --------- Turn | Location | Event 24 | -11/Scrapyard | Discovered new exit (range 15) 151 | -11/Scrapyard | Entered Materials 282 | -10/Materials | Discovered new exit (range 7) 302 | -10/Materials | Discovered new exit (range 7) 352 | -10/Materials | Entered another Materials area 352 | -9/Materials | Evolved 2 slots: Propulsion x1, Utility x1 692 | -9/Materials | Discovered new exit (range 7) 739 | -9/Materials | Self-destructed Last Messages --------------- 00458_ Acquired Hvy. Ion Engine. 00469_ Flight Unit destroyed. 00477_ K-01 Serf collects debris. 00504_ Critical hit (Burn: +37). 00529_ K-01 Serf cleans the Purification Channel. 00561_ Acquired Plasma Cutter. 00563_ Triggered Explosive Trap. 00563_ An explosion rips through the floor. 00563_ Purification Channel disabled. 00600_ U-05 Engineer lays Concrete. 00602_ K-01 Serf collects debris. 00602_ U-05 Engineer lays Concrete. 00607_ K-01 Serf collects debris. 00641_ Lgt. Assault Rifle destroyed. 00685_ Acquired Grenade Launcher. 00686_ Dropped Grenade Launcher. 00690_ K-01 Serf cleans the TF Node. 00692_ EXIT=FOUND 00697_ Flight Unit destroyed. Map ----- +----------------------------------------------------+ | | | | | | | | | | | | | | | | | | | ????????????????????????#############????????????? | | ?#?????????##???????????# #????????????? | | ########???#????????????# #????????????? | | # ###########???????# #????????????? | | # ######### == """ #????????????? | | " / == """ #????????????? | | # ######### = """ #????????????? | | # ##+########???????# #????????????? | | ######## #?####################+###????????????? | | #???? ?#]]!#?# ##????????????? | | /??????#]]!#?# < +????????????? | | #??????#]! #?# ##????????????? | | #??????# ### ############### #?????????????? | | #??????# #?# # #??????# #?????????????? | | #??????# #?# # """ #?????# #????????????? | | #??????#####?# # """ ####### ????????? | | ???????????# # """ /@ ????????? | | #+#??????????# # ####### ????????? | | ?????????????# # #?????# ######???????? | | ????"????????# ###+####?????###/###????????????? | | ?????????#???# #??#????? ??????????????? | | ?????????????# #???????? ??????????????? | | ?????????????# #???????? ??????????????? | | ?????????????######## #???????? ??????????????? | | ????????????????????# #???????? ?????????????? | | ????????????????????# #????????????????????????? | | ????????????????????# #???????? ???????????????? | | ????????????????????# #????????????????????????? | | ????????????????????# #????????????????????????? | | ????????????????????# #????????????????????????? | | ?????????????? #?? ?????????????????????? | | ???????????????"??"?? #?? ?????????????????????? | | ????????????????????? #????????????????????????? | | ????????????????????? +????????????????????????? | | ????????????????????? #????????????????????????? | | ????????????????????? #????????????????????????? | | ????????????????????? ?????????????????????????? | | ?????????????????????????????????????????????????? | | ?????????????????????????????????????????????????? | | ?????????????????????????????????????????????????? | | ????????????????????????????????????????????????? | +----------------------------------------------------+ Best States ------------- Heat Dissipation 28 Energy Generation 12 Energy Capacity 265 Matter Stores 288 Matter Capacity 300 Sight Range 16 Terrain Scan Range 16 Terrain Scan Density 10 ECM Strength 1 Evasion (%) 63 Item Schematics ----------------- None Robot Schematics ------------------ None Fabricated ------------ Nothing Repaired ---------- Nothing Studied --------- None Alien Tech Used ----------------- None Achievements -------------- None Challenges ------------ None Game ------ Seed ChipGrenadeVibroblade Manual? 0 Play Time 00:10:06 Cumulative 27.0 hours Start 2025.11.21 @ 14:35:47 End 2025.11.28 @ 15:05:51 Sessions 3 Manual Loads 0 Difficulty Rogue Special Mode None Game No. 56 Rogue 56 Adventurer 0 Explorer 0 Win Type - Total 0 Types 0/0/0/0/0/0/0/0/0/0 Lore% 6 Gallery% 23 Achievement% 14 Wizard Run 0 Options --------- Layout 1 ASCII 0 Keyboard 0 Movement Mouse Keybinds 0 Fullscreen 1 Font 24/Smallcaps Map View 50x35 Zoom Use 0% Tactical HUD 1 Map Filters NONE Filters NONE Steam 1 RUN: 656462fd-c3cb-4f45-9a71-d6d78548dd63